bitfinex-derivatives/quotes_BTCF0:USTF0_20260214
["timestamp","ask_amount","ask_price","bid_price","bid_amount"]
[1771058075091,0.014362,69663.0,69656.0,0.01448]
[1771058075291,0.014363,69661.0,69656.0,0.01448]
[1771058075588,0.014362,69662.0,69656.0,0.01448]
[1771058076491,0.014363,69661.0,69655.0,0.01448]
[1771058076685,0.014362,69663.0,69655.0,0.01448]
[1771058077084,0.014362,69662.0,69655.0,0.01448]
[1771058077588,0.014362,69663.0,69655.0,0.01448]
[1771058077787,0.01448,69666.0,69655.0,0.01448]
[1771058077992,0.014363,69661.0,69655.0,0.01448]
[1771058078292,0.014363,69660.0,69655.0,0.01448]
[1771058079087,0.014363,69658.0,69653.0,0.01448]
[1771058079286,0.014363,69661.0,69653.0,0.01448]
[1771058079492,0.014363,69660.0,69653.0,0.01448]
[1771058079793,0.014363,69659.0,69653.0,0.01448]
[1771058080588,0.014363,69659.0,69649.0,0.01448]
[1771058080792,0.014364,69657.0,69649.0,0.01448]
[1771058081394,0.014364,69655.0,69649.0,0.01448]
[1771058081888,0.014364,69656.0,69649.0,0.01448]
[1771058086497,0.01448,69657.0,69649.0,0.028845]
[1771058086690,0.01448,69657.0,69649.0,0.01448]
[1771058086891,0.028843,69657.0,69649.0,0.01448]
[1771058087091,0.014364,69656.0,69649.0,0.01448]
[1771058087892,0.028728,69656.0,69649.0,0.01448]
[1771058088095,0.014364,69656.0,69649.0,0.01448]
[1771058089999,0.028844,69657.0,69649.0,0.01448]
[1771058090199,0.028844,69657.0,69649.0,0.028845]
[1771058090200,0.01448,69657.0,69649.0,0.028845]
[1771058090694,0.01448,69657.0,69649.0,0.44022513]
[1771058090999,0.028844,69657.0,69649.0,0.44022513]
[1771058091502,0.01448,69657.0,69649.0,0.45459013]
[1771058091800,0.014364,69654.0,69649.0,0.01448]
[1771058092495,0.014364,69655.0,69649.0,0.01448]
[1771058092698,0.014364,69654.0,69649.0,0.01448]
[1771058092898,0.014364,69655.0,69649.0,0.01448]
[1771058093196,0.014364,69654.0,69649.0,0.01448]
[1771058093901,0.014364,69654.0,69647.0,0.01448]
[1771058094201,0.01448,69657.0,69647.0,0.44022513]
[1771058094401,0.028843,69657.0,69648.0,0.42574513]
[1771058094995,0.028793,69657.0,69648.0,0.42574513]
[1771058095400,0.014364,69656.0,69648.0,0.42574513]
[1771058095900,0.014364,69654.0,69647.0,0.01448]
[1771058096095,0.014364,69653.0,69647.0,0.01448]
[1771058097201,0.014364,69653.0,69647.0,0.01443]
[1771058097599,0.014364,69653.0,69645.0,0.01448]
[1771058097600,0.014365,69649.0,69645.0,0.01448]
[1771058098601,0.014365,69650.0,69645.0,0.01448]
[1771058098798,0.014365,69651.0,69645.0,0.01448]
[1771058098998,0.028844,69653.0,69645.0,0.01448]
[1771058099201,0.01448,69653.0,69646.0,0.014366]
[1771058099503,0.01448,69653.0,69645.0,0.01448]
[1771058099902,0.028844,69653.0,69645.0,0.01448]
[1771058100501,0.014365,69652.0,69645.0,0.01448]
[1771058100891,0.014362,69663.0,69649.0,0.42574513]
[1771058101094,0.01448,69662.0,69653.0,0.014364]
[1771058101299,0.01444,69662.0,69653.0,0.43837659]
[1771058101601,0.01448,69678.0,69666.0,0.43829859]
[1771058101794,0.01436,69675.0,69668.0,0.42393659]
[1771058101997,0.01436,69676.0,69668.0,0.42393659]
[1771058102295,0.01448,69678.0,69670.0,0.014361]
[1771058102501,0.005788,69678.0,69671.0,0.01436]
[1771058102697,0.005788,69678.0,69671.0,0.014361]
[1771058102903,0.014359,69677.0,69670.0,0.01448]
[1771058103105,0.014361,69669.0,69657.0,0.014363]
[1771058103306,0.014359,69677.0,69662.0,0.014362]
[1771058103307,0.01448,69673.0,69662.0,0.014362]
[1771058103605,0.02584,69673.0,69664.0,0.42393659]
[1771058103802,0.01148,69673.0,69658.0,0.14368]
[1771058104106,0.014362,69664.0,69659.0,0.01448]
[1771058104404,0.014362,69664.0,69660.0,0.01448]
[1771058104603,0.014362,69664.0,69657.0,0.14364]
[1771058105006,0.014362,69666.0,69658.0,0.01444]
[1771058105202,0.01436,69672.0,69658.0,0.01444]
[1771058105405,0.014361,69669.0,69658.0,0.45273959]
[1771058105603,0.01444,69669.0,69660.0,0.014363]
[1771058105807,0.01444,69669.0,69658.0,0.45273959]
[1771058106007,0.014362,69665.0,69658.0,0.01444]
[1771058107101,0.014359,69680.0,69670.0,0.42393659]
[1771058107301,0.014309,69679.0,69670.0,0.42393659]
[1771058108506,0.014359,69680.0,69670.0,0.43829759]
[1771058108809,0.011359,69680.0,69670.0,0.43829759]
[1771058109502,0.01448,69681.0,69670.0,0.43829759]
[1771058109708,0.014359,69680.0,69670.0,0.43829759]
[1771058111603,0.014359,69679.0,69670.0,0.43829759]
[1771058112206,0.014357,69688.0,69669.0,0.01448]
[1771058112207,0.014355,69700.0,69680.0,0.42393659]
[1771058112512,0.014357,69689.0,69682.0,0.42393659]
[1771058113109,0.014357,69689.0,69681.0,0.01444]
[1771058113110,0.01444,69694.0,69684.0,0.42393659]
[1771058113403,0.014358,69683.0,69670.0,0.014361]
[1771058113609,0.014359,69681.0,69673.0,0.01444]
[1771058113914,0.014359,69681.0,69674.0,0.01444]
[1771058115104,0.01436,69676.0,69667.0,0.12]
[1771058115309,0.01436,69674.0,69667.0,0.12]
[1771058115610,0.01436,69674.0,69668.0,0.01444]
[1771058116197,0.01436,69675.0,69668.0,0.01444]
[1771058116402,0.01444,69677.0,69668.0,0.01444]
[1771058116604,0.01444,69677.0,69668.0,0.028801]
[1771058116805,0.028799,69677.0,69668.0,0.01444]
[1771058117514,0.043159,69677.0,69668.0,0.01444]
[1771058117813,0.01436,69676.0,69668.0,0.43837659]
[1771058118012,0.028799,69677.0,69668.0,0.43837659]
[1771058118409,0.014359,69680.0,69671.0,0.42393659]
[1771058118616,0.01436,69677.0,69671.0,0.42393659]
[1771058118818,0.014359,69678.0,69671.0,0.42393659]
[1771058119118,0.014359,69678.0,69668.0,0.01444]
[1771058119312,0.028799,69679.0,69669.0,0.43829759]
[1771058120410,0.043158,69679.0,69669.0,0.43829759]
[1771058121206,0.01444,69679.0,69668.0,0.01444]
[1771058121424,0.014361,69670.0,69663.0,0.01444]
[1771058121711,0.014361,69669.0,69663.0,0.01444]
[1771058122016,0.01444,69672.0,69664.0,0.42393659]
[1771058122515,0.0288,69672.0,69663.0,0.01444]
[1771058122711,0.01444,69672.0,69656.0,0.42393659]
[1771058122916,0.01444,69672.0,69657.0,0.028803]
[1771058122917,0.014361,69667.0,69657.0,0.028803]
[1771058123116,0.028801,69667.0,69657.0,0.028803]
[1771058123916,0.014362,69665.0,69654.0,0.42393659]
[1771058124113,0.01444,69664.0,69650.0,0.56757659]
[1771058124418,0.014363,69661.0,69651.0,0.028805]
[1771058124815,0.014363,69658.0,69651.0,0.01444]
[1771058125011,0.014364,69657.0,69651.0,0.01444]
[1771058125207,0.014364,69654.0,69644.0,0.014366]
[1771058125516,0.014364,69655.0,69645.0,0.172446]
[1771058125720,0.014364,69656.0,69645.0,0.186812]
[1771058125918,0.01444,69658.0,69647.0,0.43830159]
[1771058126122,0.014363,69660.0,69645.0,0.172446]
[1771058126123,0.01444,69660.0,69652.0,0.42393659]
[1771058126323,0.01444,69663.0,69655.0,0.42393659]
[1771058126623,0.01444,69664.0,69657.0,0.42393659]
[1771058126825,0.01444,69665.0,69657.0,0.42393659]
[1771058127021,0.014362,69666.0,69657.0,0.42393659]
[1771058127022,0.01444,69666.0,69657.0,0.43829959]
[1771058127419,0.014362,69664.0,69657.0,0.42393659]
[1771058127621,0.014362,69665.0,69657.0,0.42393659]
[1771058128929,0.014362,69665.0,69654.0,0.01444]
[1771058129127,0.014363,69660.0,69654.0,0.01144]
[1771058129622,0.01444,69662.0,69654.0,0.44974059]
[1771058129822,0.01444,69663.0,69654.0,0.44974059]
[1771058130824,0.014363,69661.0,69654.0,0.01144]
[1771058131021,0.014362,69663.0,69654.0,0.01144]
[1771058131220,0.028802,69663.0,69654.0,0.01144]
[1771058131622,0.028802,69663.0,69654.0,0.42325866]
[1771058132920,0.014363,69662.0,69654.0,0.42325866]
[1771058133429,0.014362,69666.0,69656.0,0.40881866]
[1771058133619,0.01444,69665.0,69656.0,0.40881866]
[1771058134226,0.028802,69665.0,69656.0,0.40881866]
[1771058136227,0.043164,69665.0,69656.0,0.40881866]
[1771058136437,0.014362,69664.0,69656.0,0.40881866]
[1771058138029,0.014362,69663.0,69656.0,0.40881866]
[1771058139131,0.028724,69664.0,69656.0,0.40881866]
[1771058139727,0.014362,69663.0,69654.0,0.01444]
[1771058139930,0.01444,69665.0,69654.0,0.42438687]
[1771058140130,0.014362,69665.0,69654.0,0.42438687]
[1771058140434,0.014362,69663.0,69654.0,0.42438687]
[1771058141029,0.014362,69662.0,69654.0,0.42438687]
[1771058141326,0.014363,69659.0,69654.0,0.42438687]
[1771058141531,0.014363,69660.0,69654.0,0.42438687]
[1771058141831,0.014363,69659.0,69654.0,0.42438687]
[1771058142332,0.014362,69665.0,69657.0,0.40994687]
[1771058142533,0.014362,69665.0,69658.0,0.01444]
[1771058142724,0.158001,69671.0,69660.0,0.42430987]
[1771058142920,0.01444,69670.0,69662.0,0.40994687]
[1771058143126,0.01436,69675.0,69666.0,0.40994687]
[1771058143127,0.01444,69672.0,69666.0,0.40994687]
[1771058143431,0.01439,69674.0,69666.0,0.40994687]
[1771058143632,0.014358,69686.0,69665.0,0.01444]
[1771058143633,0.014359,69681.0,69670.0,0.42430787]
[1771058143825,0.014359,69679.0,69670.0,0.40994687]
[1771058144133,0.01444,69678.0,69670.0,0.40994687]
[1771058144327,0.01444,69677.0,69670.0,0.40994687]
[1771058144523,0.014359,69679.0,69670.0,0.40994687]
[1771058144725,0.01444,69677.0,69670.0,0.40994687]
[1771058145234,0.01436,69675.0,69668.0,0.01444]
[1771058145434,0.01444,69677.0,69668.0,0.01444]
[1771058145731,0.01436,69675.0,69656.0,0.40994687]
[1771058145923,0.014361,69668.0,69659.0,0.01444]
[1771058146125,0.014361,69667.0,69659.0,0.01444]
[1771058146329,0.014362,69666.0,69659.0,0.01444]
[1771058146530,0.014363,69662.0,69657.0,0.14364]
[1771058146728,0.014362,69663.0,69659.0,0.01439]
[1771058147329,0.014362,69664.0,69659.0,0.01439]
[1771058147530,0.014362,69666.0,69659.0,0.01439]
[1771058147732,0.014362,69665.0,69659.0,0.01439]
[1771058148235,0.01436,69676.0,69662.0,0.40994687]
[1771058148436,0.01444,69673.0,69664.0,0.40994687]
[1771058148732,0.01444,69674.0,69664.0,0.40994687]
[1771058148937,0.014358,69684.0,69664.0,0.40994687]
[1771058149243,0.01436,69673.0,69664.0,0.40994687]
[1771058149633,0.01436,69672.0,69664.0,0.40994687]
[1771058149832,0.014361,69671.0,69664.0,0.40994687]
[1771058150336,0.014361,69670.0,69664.0,0.40994687]
[1771058151935,0.014361,69671.0,69664.0,0.40994687]
[1771058152130,0.014361,69670.0,69664.0,0.40994687]
[1771058152438,0.01436,69673.0,69664.0,0.40994687]
[1771058153535,0.014361,69671.0,69664.0,0.40994687]
[1771058153943,0.014361,69672.0,69664.0,0.40994687]
[1771058154840,0.01436,69672.0,69664.0,0.40994687]
[1771058155242,0.01444,69677.0,69664.0,0.39563687]
[1771058155438,0.01444,69677.0,69665.0,0.40994687]
[1771058155631,0.01436,69676.0,69667.0,0.40994687]
[1771058156336,0.02872,69676.0,69667.0,0.40994687]
[1771058156829,0.01436,69675.0,69667.0,0.40994687]
[1771058157039,0.014359,69678.0,69667.0,0.42430787]
[1771058157239,0.014359,69679.0,69670.0,0.40994687]
[1771058157240,0.01444,69677.0,69670.0,0.40994687]
[1771058158232,0.01444,69679.0,69672.0,0.40994687]
[1771058158438,8.1e-05,69679.0,69672.0,0.40994687]
[1771058158642,0.01444,69679.0,69669.0,0.01444]
[1771058158838,0.01436,69674.0,69669.0,0.01444]
[1771058161045,0.44315165,69677.0,69665.0,0.14364]
[1771058161340,0.014362,69665.0,69664.0,0.01444]
[1771058161546,0.014362,69665.0,69662.0,0.01444]
[1771058161735,0.014362,69666.0,69662.0,0.01439]
[1771058162647,0.014361,69667.0,69662.0,0.01439]
[1771058162941,0.01444,69671.0,69662.0,0.45582689]
[1771058163145,0.014361,69670.0,69662.0,0.01439]
[1771058164352,0.014361,69671.0,69662.0,0.01439]
[1771058165150,0.014361,69669.0,69662.0,0.01439]
[1771058165342,0.014361,69670.0,69662.0,0.01439]
[1771058165547,0.014361,69669.0,69662.0,0.01439]
[1771058166141,0.014361,69669.0,69662.0,0.44146489]
[1771058166451,0.014361,69670.0,69662.0,0.44146489]
[1771058167751,0.014361,69667.0,69662.0,0.01439]
[1771058168147,0.014361,69669.0,69662.0,0.01439]
[1771058168349,0.014361,69668.0,69662.0,0.01439]
[1771058168645,0.014362,69666.0,69662.0,0.01439]
[1771058168843,0.014361,69668.0,69662.0,0.44146489]
[1771058169149,0.0288,69672.0,69662.0,0.44146489]
[1771058169350,0.014361,69671.0,69662.0,0.44146489]
[1771058169650,0.0288,69672.0,69662.0,0.44146489]
[1771058169843,0.01444,69674.0,69665.0,0.42707489]
[1771058170039,0.01444,69674.0,69665.0,0.44151489]
[1771058170745,0.0288,69674.0,69665.0,0.44151489]
[1771058170947,0.01436,69676.0,69665.0,0.45587689]
[1771058171346,0.01436,69675.0,69667.0,0.42707489]
[1771058172052,0.01436,69675.0,69664.0,0.014362]
[1771058172053,0.01436,69675.0,69668.0,0.44151489]
[1771058172351,0.01436,69674.0,69668.0,0.44151489]
[1771058174448,0.01436,69675.0,69668.0,0.44151489]
[1771058174752,0.01436,69675.0,69668.0,0.01444]
[1771058175149,0.01436,69675.0,69668.0,0.44151489]
[1771058175755,0.02872,69675.0,69668.0,0.44151489]
[1771058176853,0.01436,69674.0,69668.0,0.44151489]
[1771058177455,0.01436,69674.0,69669.0,0.01444]
[1771058178454,0.01312951,69674.0,69669.0,0.01444]
[1771058183361,0.01436,69676.0,69669.0,0.01444]
[1771058183362,0.01436,69673.0,69669.0,0.01444]
[1771058183861,0.01436,69674.0,69669.0,0.01444]
[1771058187161,0.01436,69675.0,69669.0,0.01444]
[1771058187662,0.15808,69679.0,69669.0,0.44151489]
[1771058187663,0.014359,69677.0,69669.0,0.44151489]
[1771058187960,0.01436,69675.0,69669.0,0.44151489]
[1771058188359,0.01436,69674.0,69669.0,0.44151489]
[1771058189868,0.01436,69675.0,69669.0,0.44151489]
[1771058190466,0.02872,69675.0,69669.0,0.01444]
[1771058190663,0.01436,69674.0,69669.0,0.01444]
[1771058191058,0.014359,69677.0,69669.0,0.01444]
[1771058191364,0.01436,69676.0,69669.0,0.01444]
[1771058191960,0.01436,69676.0,69669.0,0.45835885]
[1771058192361,0.01436,69675.0,69669.0,0.45835885]
[1771058192756,0.01436,69676.0,69669.0,0.45835885]
[1771058193363,0.157998,69684.0,69669.0,0.45835885]
[1771058193364,0.01444,69689.0,69679.0,0.44391885]
[1771058193565,0.014308,69686.0,69679.0,0.44391885]
[1771058193960,0.028797,69688.0,69678.0,8.1e-05]
[1771058194171,0.028797,69688.0,69673.0,0.14364]
[1771058194172,0.014359,69678.0,69676.0,0.01444]
[1771058194366,0.014357,69689.0,69676.0,0.01444]
[1771058194565,0.014358,69686.0,69676.0,0.45835885]
[1771058194760,0.014358,69685.0,69676.0,0.45835885]
[1771058195172,0.014358,69686.0,69676.0,0.45835885]
[1771058195465,0.028797,69688.0,69676.0,0.45835885]
[1771058195671,0.014358,69686.0,69676.0,0.45835885]
[1771058196271,0.014358,69684.0,69676.0,0.45835885]
[1771058196570,0.014358,69684.0,69676.0,0.01444]
[1771058198072,0.014358,69682.0,69676.0,0.01444]
[1771058198572,0.014358,69683.0,69676.0,0.01444]
[1771058199072,0.014358,69686.0,69676.0,0.01444]
[1771058199275,0.014358,69685.0,69676.0,0.01444]
[1771058199568,0.014359,69680.0,69669.0,0.14364]
[1771058199774,0.014359,69679.0,69670.0,0.01444]
[1771058200074,0.014359,69680.0,69670.0,0.01444]
[1771058200369,0.028798,69684.0,69673.0,0.41311275]
[1771058200370,0.043156,69684.0,69673.0,0.41311275]
[1771058200668,0.028798,69684.0,69674.0,0.42755275]
[1771058200868,0.014358,69686.0,69676.0,0.41311275]
[1771058201071,0.014358,69686.0,69677.0,0.42755275]
[1771058201575,0.01444,69688.0,69679.0,0.41311275]
[1771058201775,0.014357,69689.0,69681.0,0.41311275]
[1771058201970,0.1435077,69701.0,69680.0,0.01444]
[1771058201971,0.01444,69694.0,69683.0,0.41311275]
[1771058202168,0.014356,69693.0,69684.0,0.01444]
[1771058202364,0.014356,69692.0,69684.0,0.01444]
[1771058202575,0.014356,69692.0,69684.0,0.42755275]
[1771058203876,0.028796,69694.0,69684.0,0.42755275]
[1771058204385,0.014356,69692.0,69684.0,0.42755275]
[1771058204982,0.01444,69695.0,69684.0,0.42755275]
[1771058205182,0.014356,69693.0,69684.0,0.42755275]
[1771058205382,0.014356,69694.0,69684.0,0.42755275]
[1771058205885,0.014356,69693.0,69684.0,0.42755275]
[1771058206081,0.014356,69694.0,69684.0,0.42755275]
[1771058206292,0.028796,69695.0,69684.0,0.42755275]
[1771058206588,0.014356,69695.0,69684.0,0.44191075]
[1771058206788,0.014356,69694.0,69684.0,0.44191075]
[1771058206982,0.014356,69694.0,69684.0,0.42755275]
[1771058207985,0.014356,69693.0,69684.0,0.42755275]
[1771058208484,0.014355,69696.0,69684.0,0.42755275]
[1771058208889,0.014356,69694.0,69684.0,0.42755275]
[1771058209086,0.014356,69693.0,69684.0,0.42755275]
[1771058210184,0.0002,69707.0,69684.0,0.42755275]
[1771058210386,0.1436,69711.0,69693.0,0.41311275]
[1771058210593,0.1436,69711.0,69694.0,0.42755275]
[1771058210594,0.014354,69703.0,69694.0,0.42755275]
[1771058210789,0.014353,69707.0,69694.0,0.44190875]
[1771058210980,0.028793,69707.0,69696.0,0.41311275]
[1771058211289,0.028743,69707.0,69697.0,0.42755275]
[1771058211492,0.014353,69706.0,69697.0,0.42755275]
[1771058211689,0.014353,69706.0,69697.0,0.01444]
[1771058212191,0.014353,69707.0,69697.0,0.42755275]
[1771058212389,0.02940228,69709.0,69699.0,0.42746775]
[1771058212591,0.02940228,69709.0,69701.0,0.41311275]
[1771058212795,0.014352,69712.0,69701.0,0.41311275]
[1771058212997,0.75566672,69772.0,69701.0,0.41311275]
[1771058212998,0.14274463,69726.0,69701.0,0.41311275]
[1771058213194,0.014351,69718.0,69707.0,0.41311275]
[1771058213497,0.014351,69718.0,69708.0,1.65804]
[1771058213688,0.014351,69718.0,69701.0,0.41311275]
[1771058213689,0.014353,69710.0,69707.0,0.01444]
[1771058213992,0.014354,69703.0,69696.0,0.1436]
[1771058214195,0.014354,69704.0,69697.0,1.5]
[1771058214489,0.014354,69704.0,69696.0,0.1436]
[1771058214490,0.44315777,69710.0,69698.0,0.01444]
[1771058214690,0.014354,69703.0,69698.0,0.01444]
[1771058214888,0.014354,69702.0,69698.0,0.01444]
[1771058215089,0.014355,69699.0,69690.0,0.1436]
[1771058215288,0.014354,69702.0,69685.0,0.41311275]
[1771058215491,0.014354,69702.0,69670.0,0.00013786]
[1771058215492,0.014356,69696.0,69686.0,0.15804]
[1771058215693,0.014355,69697.0,69687.0,0.1436]
[1771058215995,0.42871777,69706.0,69687.0,0.1436]
[1771058215996,0.01444,69704.0,69694.0,0.41311275]
[1771058216196,0.01444,69704.0,69696.0,0.41311275]
[1771058216490,0.014353,69706.0,69698.0,0.41311275]
[1771058216491,0.01444,69706.0,69698.0,0.41311275]
[1771058216692,0.1436,69711.0,69700.0,0.41311275]
[1771058216693,0.01444,69709.0,69700.0,0.41311275]
[1771058216896,0.028793,69709.0,69700.0,0.41311275]
[1771058217498,0.014352,69713.0,69700.0,0.41311275]
[1771058217789,0.014353,69709.0,69700.0,0.41311275]
[1771058217988,0.01444,69712.0,69700.0,0.41311275]
[1771058218389,0.014353,69710.0,69700.0,0.41311275]
[1771058218900,0.014353,69709.0,69700.0,0.41311275]
[1771058219285,0.014353,69710.0,69700.0,0.41311275]
[1771058219489,0.014352,69711.0,69700.0,0.41311275]
[1771058219891,0.014353,69709.0,69700.0,0.41311275]
[1771058220394,0.014353,69710.0,69700.0,0.41311275]
[1771058220694,0.014352,69711.0,69700.0,0.41311275]
[1771058220896,0.01435,69722.0,69707.0,0.41311275]
[1771058221199,0.014351,69716.0,69707.0,0.42755275]
[1771058221396,0.014351,69718.0,69707.0,0.42755275]
[1771058221894,0.014351,69718.0,69707.0,0.01444]
[1771058222097,0.014351,69716.0,69707.0,0.01444]
[1771058222497,0.014351,69717.0,69707.0,0.01444]
[1771058223592,0.028791,69719.0,69708.0,0.014353]
[1771058223795,0.01435,69723.0,69714.0,0.39984853]
[1771058224001,0.01455,69724.0,69716.0,0.39984853]
[1771058224188,0.01435,69724.0,69717.0,0.01444]
[1771058224392,0.01435,69722.0,69717.0,0.01444]
[1771058225097,0.014351,69719.0,69716.0,0.01444]
[1771058226593,0.014351,69720.0,69716.0,0.01444]
[1771058226793,0.01435,69723.0,69716.0,0.01444]
[1771058227099,0.02879,69722.0,69716.0,0.01444]
[1771058227296,0.01435,69721.0,69716.0,0.01444]
[1771058227693,0.014351,69720.0,69716.0,0.01444]
[1771058227894,0.02879,69722.0,69716.0,0.01444]
[1771058228094,0.01435,69721.0,69716.0,0.01444]
[1771058229197,0.014351,69719.0,69716.0,0.01444]
[1771058229393,0.01435,69721.0,69716.0,0.01444]
[1771058229590,9e-05,69724.0,69716.0,0.01444]
[1771058229997,0.01435,69722.0,69716.0,0.01444]
[1771058230499,0.01435,69724.0,69716.0,0.01444]
[1771058231097,0.01435,69725.0,69716.0,0.41428853]
[1771058231297,0.01444,69726.0,69716.0,0.41428853]
[1771058231705,0.01435,69725.0,69716.0,0.41428853]
[1771058231998,0.01435,69724.0,69716.0,0.41428853]
[1771058232192,0.014348,69730.0,69718.0,0.39984853]
[1771058232396,0.014349,69726.0,69718.0,0.39984853]
[1771058232904,0.01444,69730.0,69718.0,0.39984853]
[1771058233101,0.014349,69726.0,69718.0,0.39984853]
[1771058233305,0.01444,69731.0,69718.0,0.39984853]
[1771058233803,0.014349,69726.0,69718.0,0.39984853]
[1771058234191,0.014349,69728.0,69718.0,0.39984853]
[1771058234397,0.86361911,69800.0,69720.0,0.39984853]
[1771058234398,0.01444,69733.0,69720.0,0.39984853]
[1771058234597,0.0002,69738.0,69722.0,0.39984853]
[1771058234894,0.3161,69760.0,69723.0,0.158]
[1771058234895,0.014348,69735.0,69723.0,0.158]
[1771058235098,0.014348,69732.0,69723.0,0.158]
[1771058235296,0.014347,69740.0,69724.0,0.39984853]
[1771058235499,0.014347,69740.0,69727.0,0.41419753]
[1771058235701,0.014347,69740.0,69728.0,0.028789]
[1771058235905,0.01444,69739.0,69728.0,0.028789]
[1771058237803,0.01444,69739.0,69729.0,0.014349]
[1771058238002,0.01444,69739.0,69728.0,0.42863753]
[1771058238204,0.014347,69740.0,69728.0,0.42863753]
[1771058238398,0.014345,69749.0,69736.0,0.39984853]
[1771058238704,0.014345,69747.0,69735.0,0.42863553]
[1771058239101,0.014345,69748.0,69736.0,0.41419553]
[1771058239303,0.014342,69763.0,69746.0,0.41419353]
[1771058239503,0.014342,69763.0,69741.0,0.014346]
[1771058239504,0.014344,69751.0,69742.0,0.01444]
[1771058239807,0.014345,69749.0,69742.0,0.01444]
[1771058240004,0.014346,69742.0,69737.0,0.01444]
[1771058240203,0.014346,69741.0,69729.0,0.014349]
[1771058240408,0.014346,69744.0,69732.0,0.028694]
[1771058240705,0.14355409,69757.0,69730.0,0.15796]
[1771058240706,0.014347,69737.0,69730.0,0.129069]
[1771058240905,0.014348,69733.0,69727.0,0.01444]
[1771058241105,0.014347,69737.0,69727.0,0.01444]
[1771058241303,0.014346,69742.0,69728.0,0.014349]
[1771058241511,0.01444,69741.0,69730.0,0.39984853]
[1771058241699,0.01444,69742.0,69732.0,0.41419653]
[1771058242008,0.01444,69742.0,69732.0,0.41399653]
[1771058242708,0.014346,69742.0,69732.0,0.39964853]
[1771058242906,0.015346,69744.0,69732.0,0.39964853]
[1771058243203,0.028785,69745.0,69733.0,0.014348]
[1771058243410,0.014346,69744.0,69733.0,0.014348]
[1771058243707,0.028785,69745.0,69733.0,0.014348]
[1771058244007,0.014346,69742.0,69732.0,0.39964853]
[1771058244302,0.028786,69741.0,69731.0,0.15796]
[1771058244500,0.014346,69740.0,69731.0,0.15796]
[1771058244701,0.01444,69741.0,69731.0,0.15796]
[1771058244897,0.42044923,69739.0,69722.0,0.01435]
[1771058245102,0.01435,69722.0,69715.0,0.14352]
[1771058245298,0.028789,69725.0,69715.0,0.14352]
[1771058245498,0.01444,69725.0,69717.0,0.39984853]
[1771058245801,0.01444,69725.0,69715.0,0.157871]
[1771058246600,0.014349,69726.0,69716.0,0.014351]
[1771058246905,0.014349,69725.0,69716.0,0.39984853]
[1771058247505,0.01444,69727.0,69720.0,0.39984853]
[1771058248210,0.01444,69727.0,69718.0,0.01444]
[1771058248705,0.01444,69727.0,69720.0,0.01435]
[1771058248905,0.01444,69727.0,69719.0,0.39984853]
[1771058249102,0.01444,69727.0,69719.0,0.41419953]
[1771058249303,0.014348,69732.0,69722.0,0.39984853]
[1771058249611,0.014349,69730.0,69722.0,0.39984853]
[1771058249803,0.01444,69729.0,69722.0,0.39984853]
[1771058250412,0.01444,69729.0,69721.0,0.01444]
[1771058250709,0.028789,69730.0,69721.0,0.01444]
[1771058251210,0.014349,69727.0,69720.0,0.01444]
[1771058251908,0.014349,69726.0,69719.0,0.01444]
[1771058252310,0.014349,69726.0,69718.0,0.5]
[1771058252509,0.014349,69729.0,69718.0,0.51444]
[1771058252713,0.014349,69728.0,69718.0,0.51444]
[1771058253305,0.014349,69727.0,69718.0,0.51444]
[1771058253506,0.014349,69728.0,69718.0,0.51444]
[1771058253811,0.01435,69723.0,69718.0,0.342001]
[1771058254109,0.14352,69729.0,69720.0,0.43435903]
[1771058254410,0.01444,69728.0,69720.0,0.43435903]
[1771058255307,0.01444,69728.0,69718.0,0.370792]
[1771058256201,0.01444,69728.0,69718.0,0.356441]
[1771058256613,0.01435,69723.0,69718.0,0.313121]
[1771058257110,0.01435,69722.0,69718.0,0.298681]
[1771058257614,0.02879,69723.0,69713.0,0.01444]
[1771058257615,0.014351,69719.0,69713.0,0.01444]
[1771058257814,0.028791,69719.0,69711.0,0.01444]
[1771058260414,0.01444,69719.0,69711.0,0.01444]
[1771058260716,0.01444,69719.0,69712.0,0.014352]
[1771058261107,0.01435,69723.0,69712.0,0.014352]
[1771058261809,0.01444,69722.0,69712.0,0.014352]
[1771058262110,0.01444,69722.0,69713.0,0.014352]
[1771058262314,0.01435,69723.0,69713.0,0.014352]
[1771058262514,0.01435,69725.0,69713.0,0.014352]
[1771058262515,0.01444,69722.0,69715.0,0.014351]
[1771058262704,0.01444,69722.0,69715.0,0.41663199]
[1771058262910,0.01444,69723.0,69715.0,0.41663199]
[1771058263306,0.14352,69727.0,69717.0,0.014351]
[1771058263611,0.01444,69726.0,69717.0,0.41663199]
[1771058263817,0.01444,69725.0,69718.0,0.014351]
[1771058264009,0.01444,69726.0,69718.0,0.014351]
[1771058264205,0.014348,69731.0,69718.0,0.014351]
[1771058264409,0.01444,69730.0,69719.0,0.014351]
[1771058264615,0.028789,69730.0,69719.0,0.014351]
[1771058264918,0.01444,69730.0,69719.0,0.41663199]
[1771058265217,0.01444,69729.0,69724.0,0.40228099]
[1771058265419,0.01444,69729.0,69722.0,0.01435]
[1771058265611,0.14352,69732.0,69722.0,0.01435]
[1771058265812,0.14352,69732.0,69725.0,0.014349]
[1771058266118,0.01444,69731.0,69723.0,0.01435]
[1771058266319,0.014346,69745.0,69733.0,0.014348]
[1771058266520,0.014346,69741.0,69730.0,0.40228099]
[1771058266818,0.028786,69742.0,69730.0,0.41662899]
[1771058267015,0.028786,69742.0,69731.0,0.014348]
[1771058267016,0.01444,69742.0,69731.0,0.014348]
[1771058267211,0.01444,69742.0,69732.0,0.40228099]
[1771058267212,0.014346,69741.0,69732.0,0.40228099]
[1771058267614,0.014346,69741.0,69730.0,0.014348]
[1771058267910,0.028786,69742.0,69731.0,0.014348]
[1771058268115,0.01444,69742.0,69730.0,0.014348]
[1771058268315,0.014346,69740.0,69730.0,0.40228099]